bitfinex-derivatives/quotes_SOLF0:USTF0_20240830
["timestamp","ask_amount","ask_price","bid_price","bid_amount"]
[1725034390427,0.05433774,134.17,134.15,0.05620522]
[1725034390627,35.88433774,134.17,134.15,0.04839136]
[1725034391029,3.7271,134.16,134.15,0.04839136]
[1725034391635,3.70258588,134.16,134.06,40.3763282]
[1725034391934,35.83,134.15,134.06,4.5463282]
[1725034392135,39.59928236,134.15,134.06,4.5463282]
[1725034392334,43.32678236,134.15,134.11,3.7284]
[1725034392729,0.05003277,134.14,134.12,0.05170138]
[1725034394232,0.05003277,134.14,134.12,3.77960138]
[1725034394537,0.05003277,134.14,134.12,0.05170138]
[1725034396243,35.83,134.13,134.02,1.3733]
[1725034396443,35.83,134.1,134.02,1.3733]
[1725034396651,35.83,134.1,134.05,3.7299]
[1725034396652,3.7291,134.09,134.05,3.7299]
[1725034396849,3.7291,134.09,133.99,35.83]
[1725034396850,35.83,134.1,133.99,35.83]
[1725034397045,0.05097091,134.06,134.04,3.7302]
[1725034397243,0.05097091,134.06,134.03,0.04765]
[1725034397656,0.05097091,134.06,134.05,3.7301]
[1725034398050,0.05097091,134.06,134.03,0.04765]
[1725034400056,0.05097091,134.06,134.05,3.7301]
[1725034401948,0.05097091,134.06,134.04,3.7302]
[1725034403653,0.05097091,134.06,134.05,3.7301]
[1725034406551,0.05097091,134.06,134.05,7.38994838]
[1725034406754,2.1272,134.12,134.1,3.7287]
[1725034407069,2.1272,134.12,134.07,35.83]
[1725034407267,3.7277,134.14,134.07,35.83]
[1725034407452,3.7277,134.14,134.1,3.7285]
[1725034407658,4.2798,134.15,134.1,3.7285]
[1725034407858,3.7281,134.13,134.11,0.05580065]
[1725034408067,3.78337544,134.13,134.11,0.05408778]
[1725034408961,35.83,134.12,134.02,35.83]
[1725034409163,35.83,134.12,134.0,35.83]
[1725034409363,2.2456,134.11,134.0,35.83]
[1725034410063,0.04909687,134.07,134.04,0.04890761]
[1725034410963,0.04909687,134.07,134.05,3.7301]
[1725034411165,0.04909687,134.07,134.04,0.04890761]
[1725034411967,0.04909687,134.07,134.05,3.76435495]
[1725034412269,0.04909687,134.07,134.06,3.7298]
[1725034412462,0.04909687,134.07,134.04,0.04890761]
[1725034413565,0.04909687,134.07,134.05,3.7301]
[1725034413767,0.04909687,134.07,134.04,0.04890761]
[1725034414270,0.04909687,134.07,134.05,3.7299]
[1725034415158,0.04909687,134.07,134.06,3.7298]
[1725034418771,2.093,134.13,134.12,3.7281]
[1725034418968,2.093,134.13,134.05,3.66572195]
[1725034419165,2.093,134.13,134.04,35.83]
[1725034419577,2.093,134.13,134.02,43.2916]
[1725034419774,35.83,134.12,134.02,43.2916]
[1725034419973,0.05120255,134.09,134.06,0.04792347]
[1725034420475,0.05120255,134.09,134.08,3.7293]
[1725034422980,2.1104,134.15,134.13,3.7276]
[1725034423182,4.245,134.18,134.12,3.66666043]
[1725034423382,7.9716,134.18,134.08,35.83]
[1725034423573,35.83,134.16,134.13,3.7277]
[1725034423877,35.83,134.16,134.06,36.8241]
[1725034424067,0.05646059,134.12,134.11,3.7282]
[1725034424268,0.04875198,134.13,134.1,0.04717535]
[1725034425085,0.04875198,134.13,134.12,3.7281]
[1725034425380,0.04875198,134.13,134.12,7.45750737]
[1725034430886,2.2115,134.2,134.12,39.55940737]
[1725034431190,4.2915,134.22,134.12,39.55940737]
[1725034431382,3.7257,134.21,134.18,3.7263]
[1725034431583,39.5557,134.21,134.18,3.7263]
[1725034431890,0.05203451,134.21,134.18,0.05196929]
[1725034432188,3.77773451,134.21,134.18,3.77826929]
[1725034432590,39.556,134.2,134.18,0.05196929]
[1725034433092,35.83,134.2,134.16,3.727]
[1725034433388,3.7264,134.19,134.16,3.727]
[1725034434193,3.7748989,134.19,134.16,3.77483238]
[1725034434381,0.0484989,134.19,134.17,3.7267]
[1725034434584,0.0484989,134.19,134.16,0.04783238]
[1725034434782,0.0484989,134.19,134.18,3.7265]
[1725034434977,0.0484989,134.19,134.16,0.04783238]
[1725034436391,0.0484989,134.19,134.17,3.7266]
[1725034437090,0.0484989,134.19,134.16,0.04783238]
[1725034437591,3.7266,134.18,134.16,0.04783238]
[1725034437990,3.7265,134.18,134.16,0.04783238]
[1725034438791,3.7268,134.17,134.16,0.04783238]
[1725034438983,3.7268,134.17,134.08,36.8223]
[1725034439992,0.04802778,134.14,134.11,0.05127939]
[1725034440186,0.04802778,134.14,134.13,3.7279]
[1725034440490,0.04802778,134.14,134.11,0.05127939]
[1725034440788,0.04802778,134.14,134.11,3.77957939]
[1725034440996,0.04802778,134.14,134.11,0.05127939]
[1725034441388,0.04802778,134.14,134.12,3.7279]
[1725034441792,0.04802778,134.14,134.12,3.75652303]
[1725034442290,0.04802778,134.14,134.13,3.7279]
[1725034442494,0.04802778,134.14,134.13,7.54368947]
[1725034442689,0.04802778,134.14,134.13,3.7279]
[1725034443284,0.04802778,134.14,134.13,7.38527289]
[1725034443896,0.04802778,134.14,134.13,3.7279]
[1725034444600,0.04802778,134.14,134.13,7.46988598]
[1725034447293,2.0349,134.21,134.13,3.74198598]
[1725034447499,35.83,134.24,134.14,35.83]
[1725034447706,8.12342602,134.25,134.16,35.83]
[1725034447895,4.4228,134.25,134.16,35.83]
[1725034448093,4.4228,134.25,134.18,28.6]
[1725034448289,228.0,134.31,134.2,0.04712139]
[1725034448590,228.0,134.31,134.24,0.05399063]
[1725034448591,0.05741497,134.27,134.24,0.05399063]
[1725034448800,28.6,134.26,134.24,0.05399063]
[1725034449194,36.14162959,134.26,134.24,0.05399063]
[1725034449396,28.6,134.25,134.18,3.7114324]
[1725034449699,28.6,134.25,134.18,3.73231122]
[1725034449902,28.6,134.25,134.2,3.7257]
[1725034450096,39.9175,134.24,134.2,3.7257]
[1725034450291,39.9175,134.24,134.14,35.77]
[1725034450495,0.0570255,134.23,134.18,0.05033524]
[1725034451393,3.7822255,134.23,134.2,3.7258]
[1725034451996,3.7822255,134.23,134.18,0.05033524]
[1725034452999,3.7254,134.22,134.19,3.7259]
[1725034454995,3.7254,134.22,134.2,3.7259]
[1725034455405,3.7254,134.22,134.18,0.05033524]
[1725034455606,37.8868255,134.23,134.18,0.05033524]
[1725034455806,35.77,134.19,134.09,0.9924]
[1725034456104,4.2481,134.18,134.1,35.77]
[1725034456305,2.0598,134.23,134.12,35.77]
[1725034456306,37.8298,134.23,134.12,35.77]
[1725034456512,37.8298,134.23,134.12,39.54207361]
[1725034456701,3.7255,134.22,134.14,35.77]
[1725034456901,0.05639651,134.19,134.17,0.05189915]
[1725034457103,0.05639651,134.19,134.18,3.726995]
[1725034457405,0.05639651,134.19,134.18,7.453295]
[1725034458300,0.05639651,134.19,134.18,43.223295]
[1725034458500,3.65956337,134.26,134.18,39.496995]
[1725034458704,3.7244,134.26,134.18,39.496995]
[1725034458910,7.4882775,134.26,134.18,39.496995]
[1725034459110,3.7244,134.26,134.23,3.725]
[1725034459310,7.36533584,134.26,134.18,39.496995]
[1725034459503,7.36533584,134.26,134.22,3.7252]
[1725034459504,0.05521799,134.23,134.22,3.7252]
[1725034462206,0.05521799,134.23,134.21,0.0512631]
[1725034462399,35.82521799,134.23,134.13,36.7624]
[1725034462603,3.7258,134.21,134.13,36.7624]
[1725034462910,4.2664,134.22,134.18,3.7263]
[1725034463306,3.7257,134.21,134.18,3.7263]
[1725034463613,35.77,134.21,134.17,3.7267]
[1725034463816,35.8240378,134.21,134.18,0.0528531]
[1725034464008,0.0540378,134.21,134.2,3.7259]
[1725034467216,39.9108,134.3,134.25,3.7244]
[1725034467413,45.88790793,134.3,134.25,3.7244]
[1725034467609,3.7243,134.26,134.15,0.4786]
[1725034467818,35.77,134.28,134.23,3.725]
[1725034468014,35.77,134.28,134.17,35.77]
[1725034468317,0.05256785,134.24,134.23,3.7251]
[1725034468617,0.04908017,134.25,134.22,0.0513378]
[1725034468809,0.05317063,134.25,134.23,3.7249]
[1725034469213,0.05317063,134.25,134.22,0.04879746]
[1725034469412,0.05317063,134.25,134.22,3.77399746]
[1725034469809,3.77787063,134.25,134.22,3.77399746]
[1725034470111,3.77787063,134.25,134.22,0.04879746]
[1725034471114,3.77787063,134.25,134.22,3.77409746]
[1725034471308,3.725,134.24,134.22,0.04879746]
[1725034471513,39.9745,134.24,134.15,35.77]
[1725034471713,39.9745,134.24,134.19,3.7262]
[1725034471909,3.7252,134.23,134.19,3.7262]
[1725034472619,0.05713754,134.22,134.2,0.05591963]
[1725034473208,3.78253754,134.22,134.2,0.05591963]
[1725034473613,3.7259,134.2,134.14,3.75353896]
[1725034473918,35.77,134.21,134.11,43.6503]
[1725034474122,35.77,134.23,134.13,35.77]
[1725034474311,3.7256,134.22,134.13,35.77]
[1725034474508,35.77,134.23,134.13,35.77]
[1725034474715,4.2045,134.24,134.17,0.05713411]
[1725034474910,0.04929105,134.22,134.17,0.05713411]
[1725034475314,0.04929105,134.22,134.19,3.726]
[1725034475920,3.77469105,134.22,134.19,3.726]
[1725034476220,3.74881161,134.22,134.18,3.7263]
[1725034476418,0.04929105,134.22,134.18,3.7263]
[1725034476814,3.7258,134.21,134.18,3.7263]
[1725034477120,35.77,134.21,134.17,3.78383411]
[1725034477327,35.77,134.21,134.17,0.05713411]
[1725034477512,39.4958,134.21,134.18,3.7265]
[1725034477915,35.77,134.21,134.17,0.05713411]
[1725034478316,0.04929105,134.22,134.17,0.05713411]
[1725034478919,8.0014,134.3,134.2,35.77]
[1725034479115,4.2781,134.3,134.23,35.77]
[1725034479311,4.2781,134.3,134.27,3.7238]
[1725034479714,4.2781,134.3,134.21,35.77]
[1725034480026,3.77593463,134.29,134.26,0.05106198]
[1725034480423,35.77,134.27,134.18,35.77]
[1725034480620,3.7244,134.26,134.22,3.7252]
[1725034480819,35.77,134.27,134.2,3.814515]
[1725034481021,35.77,134.27,134.18,35.77]
[1725034481325,35.77,134.27,134.16,0.989]
[1725034481326,3.725,134.24,134.16,35.77]
[1725034481525,0.05600885,134.23,134.2,0.05237555]
[1725034481926,0.05600885,134.23,134.2,3.77807555]
[1725034482224,0.05600885,134.23,134.2,0.05237555]
[1725034484324,0.05600885,134.23,134.21,3.7256]
[1725034484526,0.05600885,134.23,134.2,0.05237555]
[1725034484928,0.05600885,134.23,134.22,3.7254]
[1725034486028,0.05600885,134.23,134.22,32.3154]
[1725034486633,2.202,134.29,134.22,28.59]
[1725034486835,2.202,134.29,134.24,28.59]
[1725034487134,2.202,134.29,134.25,3.7244]
[1725034487432,5.9256,134.29,134.25,3.7244]
[1725034487733,0.05690578,134.28,134.26,0.05546522]
[1725034488635,3.78080578,134.28,134.26,0.05546522]
[1725034489526,3.78080578,134.28,134.26,3.77966522]
[1725034489725,0.05690578,134.28,134.26,3.77966522]
[1725034490531,3.78070578,134.28,134.26,3.77966522]
[1725034491628,0.05690578,134.28,134.27,3.724]
[1725034492027,0.05690578,134.28,134.26,0.05546522]
[1725034492334,3.78070578,134.28,134.26,3.77956522]
[1725034493835,3.724,134.27,134.26,0.05546522]
[1725034494638,3.7249,134.24,134.18,39.4696156]
[1725034494846,18.68043439,134.32,134.15,43.1945]
[1725034494847,35.74,134.26,134.15,43.1945]
[1725034495237,35.74,134.28,134.17,35.74]
[1725034495737,0.05733973,134.24,134.21,0.05739112]
[1725034496139,3.78243973,134.24,134.21,3.78289112]
[1725034496638,0.05733973,134.24,134.21,0.05739112]
[1725034497339,3.7251,134.23,134.21,0.05739112]
[1725034497535,35.74,134.23,134.13,35.74]
[1725034497935,3.7261,134.2,134.13,35.74]
[1725034498246,35.74,134.22,134.14,3.71722288]
[1725034498447,3.7264,134.19,134.16,3.727]
[1725034498743,3.77367802,134.19,134.17,0.04885801]
[1725034499037,0.04727802,134.19,134.17,0.04885801]
[1725034499435,0.04727802,134.19,134.17,3.77545801]
[1725034500035,0.04727802,134.19,134.18,3.7265]
[1725034500230,0.04727802,134.19,134.17,0.04885801]
[1725034500738,3.727,134.17,134.09,43.1976]
[1725034500940,2.2169,134.2,134.09,43.1976]
[1725034501143,3.7265,134.18,134.16,3.727]
[1725034501337,2.2169,134.2,134.14,3.66756092]
[1725034501640,0.0567225,134.18,134.17,3.7268]
[1725034501845,0.05025387,134.19,134.16,0.02469554]
[1725034502041,0.05025387,134.19,134.18,3.7265]
[1725034502635,3.69285018,134.19,134.16,0.02469554]
[1725034502837,0.05025387,134.19,134.16,0.02469554]
[1725034503043,3.7266,134.18,134.16,0.02469554]
[1725034503443,3.76233406,134.19,134.16,0.02469554]
[1725034503643,3.7265,134.18,134.16,0.02469554]
[1725034504343,0.05025387,134.19,134.09,35.74]
[1725034504540,35.74,134.18,134.07,44.8964]
[1725034504741,37.7748,134.18,134.07,37.4377]
[1725034504941,35.74,134.16,134.07,37.4377]
[1725034505141,35.74,134.16,134.07,35.74]
[1725034505343,3.7274,134.15,134.12,3.728]
[1725034505542,0.05160001,134.15,134.07,35.74]
[1725034506049,3.7276,134.14,134.11,3.7283]
[1725034506343,3.7276,134.14,134.07,35.74]
[1725034506548,35.74,134.16,134.07,35.74]
[1725034506747,0.05545128,134.13,134.07,35.74]
[1725034506950,0.05545128,134.13,134.11,3.7284]
[1725034507247,0.05545128,134.13,134.06,3.75205151]
[1725034507446,0.05545128,134.13,134.05,35.74]
[1725034507638,3.78355128,134.13,134.09,3.7288]
[1725034508047,28.67545128,134.13,134.04,28.62]
[1725034508244,0.05454074,134.1,134.03,1.7028]
[1725034508552,0.05454074,134.1,134.03,5.46705855]
[1725034508743,3.78324074,134.1,134.03,1.7028]
[1725034508946,0.05454074,134.1,134.04,3.76724073]
[1725034509148,0.05454074,134.1,134.02,28.62]
[1725034509348,3.7291,134.09,134.02,28.62]
[1725034509551,0.05046877,134.07,134.02,28.62]
[1725034509754,0.05046877,134.07,134.02,32.34735405]
[1725034510546,28.62,134.16,134.06,28.62]
[1725034510949,3.7276,134.14,134.1,3.7284]
[1725034511146,28.62,134.16,134.09,3.79334775]
[1725034511346,28.62,134.16,134.06,28.62]
[1725034511548,0.05475566,134.12,134.11,3.7283]
[1725034513363,0.05475566,134.12,134.09,0.05046877]
[1725034514859,0.05475566,134.12,134.09,3.79021828]
[1725034515060,0.05475566,134.12,134.11,3.7284]
[1725034515265,0.05475566,134.12,134.11,7.53487085]
[1725034516472,343.0,134.17,134.16,3.727]
[1725034516765,228.0,134.27,134.21,3.7254]
[1725034516963,41.998,134.26,134.16,3.80860102]
[1725034517157,41.998,134.26,134.15,35.81]
[1725034517363,0.04875423,134.22,134.2,3.7257]
[1725034517666,0.04875423,134.22,134.19,0.05320012]
[1725034517967,3.80860102,134.3,134.21,35.81]
[1725034518166,2.0561,134.32,134.21,35.81]
[1725034518368,2.0561,134.32,134.23,35.81]
[1725034518870,0.05100003,134.29,134.26,0.04739548]
[1725034519072,0.05100003,134.29,134.28,3.7237]
[1725034519865,0.05100003,134.29,134.27,3.7239]
[1725034520469,0.05100003,134.29,134.28,3.7237]
[1725034520877,0.05100003,134.29,134.26,0.04739548]
[1725034521375,0.05100003,134.29,134.27,3.7239]
[1725034521963,0.05100003,134.29,134.26,3.77159548]
[1725034522368,0.05100003,134.29,134.26,0.04739548]
[1725034522677,0.05100003,134.29,134.28,3.7237]
[1725034523776,0.05100003,134.29,134.27,3.7239]
[1725034523971,0.05100003,134.29,134.26,0.04739548]
[1725034524277,0.05100003,134.29,134.27,3.7237]
[1725034524573,0.05100003,134.29,134.26,0.04739548]
[1725034524774,0.05100003,134.29,134.27,3.724]
[1725034524968,0.05100003,134.29,134.26,0.04739548]
[1725034525475,0.05100003,134.29,134.28,3.7237]
[1725034526869,0.05100003,134.29,134.27,3.7239]
[1725034527365,0.05100003,134.29,134.27,3.7238]
[1725034527572,0.05100003,134.29,134.26,0.04739548]
[1725034527967,0.05100003,134.29,134.28,3.7237]
[1725034529675,0.05100003,134.29,134.28,39.5337]
[1725034530072,0.05100003,134.29,134.28,3.7237]
[1725034530975,43.69306764,134.36,134.28,3.7237]
[1725034530976,2.0399,134.36,134.28,35.81]
[1725034531165,2.0769,134.39,134.31,35.81]
[1725034531471,35.81,134.43,134.31,35.81]
[1725034531670,267.51872773,134.47,134.31,35.81]
[1725034531671,35.81,134.39,134.31,3.64390217]
[1725034531876,0.05737186,134.36,134.34,0.05499436]
[1725034532577,2.1203,134.42,134.35,35.81]
[1725034532776,2.1203,134.42,134.31,3.72431521]
[1725034533073,35.81,134.41,134.3,35.81]
[1725034533280,3.72282608,134.4,134.3,39.50788315]
[1725034533579,0.05307046,134.36,134.35,3.7216]
[1725034533767,0.05130891,134.37,134.35,3.7216]
[1725034534774,0.05130891,134.37,134.34,0.04723281]
[1725034534775,0.05130891,134.37,134.36,3.7215]
[1725034535370,18.5757,134.6,134.34,0.04723281]
[1725034535371,228.0,134.54,134.35,35.81]
[1725034535574,4.317,134.49,134.39,35.81]
[1725034535772,3.7182,134.48,134.39,35.81]
[1725034535968,43.93375063,134.49,134.39,39.48390508]
[1725034536374,0.05577664,134.45,134.43,0.04790653]
[1725034537475,0.05577664,134.45,134.44,3.7193]
[1725034537782,0.05577664,134.45,134.43,0.04790653]
[1725034538270,35.86577664,134.45,134.43,0.04790653]
[1725034538672,3.7193,134.44,134.43,0.04790653]
[1725034538867,0.05577664,134.45,134.43,0.04790653]
[1725034540874,3.7196,134.43,134.35,36.7011]
[1725034541080,8.12375063,134.49,134.35,40.44152109]
[1725034541273,35.81,134.45,134.35,40.44152109]
[1725034541467,35.81,134.45,134.39,3.7204]
[1725034541674,0.05101732,134.43,134.35,40.44152109]
[1725034541873,0.05101732,134.43,134.41,3.72]
[1725034542078,0.05101732,134.43,134.38,0.04724914]
[1725034542585,0.05101732,134.43,134.42,3.7198]
[1725034545876,8.035,134.49,134.45,3.7187]
[1725034546078,8.035,134.49,134.42,3.79603529]
[1725034546280,8.035,134.49,134.4,35.81]
[1725034546477,8.035,134.49,134.45,3.7187]
[1725034546882,0.05643242,134.48,134.46,0.05522693]
[1725034547987,3.7184,134.47,134.46,0.05522693]
[1725034548687,5.9511,134.47,134.46,0.05522693]
[1725034549190,2.2327,134.47,134.38,35.81]
[1725034549381,37.8835,134.46,134.38,3.68446151]
[1725034549582,2.0735,134.46,134.38,35.81]
[1725034549788,2.0735,134.46,134.39,3.74284468]
[1725034550283,3.76634226,134.44,134.41,0.05572028]
[1725034550490,0.04704226,134.44,134.41,0.05572028]
[1725034550687,35.81,134.43,134.33,35.81]
[1725034550992,39.48589079,134.43,134.33,35.81]
[1725034551188,3.7206,134.4,134.33,35.81]
[1725034551387,39.48589079,134.43,134.33,35.81]
[1725034551579,39.48589079,134.43,134.37,3.721]
[1725034551785,0.05358568,134.41,134.39,0.05090159]
[1725034552187,3.77368568,134.41,134.39,0.05090159]
[1725034552788,3.7204,134.4,134.39,0.05090159]
[1725034552994,0.05358568,134.41,134.33,35.81]
[1725034553189,39.48589079,134.43,134.33,35.81]
[1725034553490,39.48589079,134.43,134.3,0.8389]
[1725034553683,2.0735,134.46,134.37,35.81]
[1725034553887,3.7195,134.44,134.38,3.68072602]
[1725034554087,0.04738876,134.42,134.41,3.7201]
[1725034556294,0.04738876,134.42,134.26,14.8962]
[1725034556499,3.76953329,134.43,134.33,35.81]
[1725034556793,35.81,134.42,134.31,36.531]
[1725034556998,35.81,134.42,134.31,36.2397]
[1725034557296,0.05419878,134.38,134.35,0.0559288]
[1725034557493,0.05440436,134.38,134.35,0.05472885]
[1725034557695,3.7219,134.35,134.31,3.7228]
[1725034557898,35.81,134.37,134.29,3.75576722]
[1725034558093,35.81,134.35,134.24,35.81]
[1725034558293,35.81,134.35,134.28,3.7236]
[1725034558294,3.7226,134.32,134.28,3.7236]
[1725034558593,35.81,134.37,134.28,35.81]
[1725034558788,5.7429203,134.39,134.34,3.722]
[1725034558789,0.04807381,134.35,134.34,3.722]
[1725034558988,0.05438821,134.36,134.34,3.78739395]
[1725034559197,0.04830365,134.36,134.35,35.81]
[1725034559495,3.7199,134.42,134.35,35.81]
[1725034559892,5.745,134.43,134.38,3.7207]
[1725034560293,0.04947463,134.42,134.39,0.04881346]
[1725034560796,0.04947463,134.42,134.41,3.7201]
[1725034561005,0.04947463,134.42,134.41,7.37523392]
[1725034564296,8.0212,134.52,134.41,35.81]
[1725034564500,6.4171,134.52,134.43,35.81]
[1725034564690,3.72982821,134.51,134.43,35.81]
[1725034564999,7.44732821,134.51,134.47,3.7184]
[1725034565200,7.44732821,134.51,134.43,35.81]
[1725034565201,4.2423,134.52,134.4,1.2461]
[1725034565388,3.7177,134.5,134.46,3.7187]
[1725034565696,0.05254295,134.47,134.46,3.7187]
[1725034565999,0.05326875,134.48,134.45,0.0565512]
[1725034566586,0.05326875,134.48,134.47,3.7184]
[1725034566992,3.76366475,134.54,134.47,3.62831858]
[1725034567197,3.76366475,134.54,134.48,35.81]
[1725034567401,3.76366475,134.54,134.48,39.43780643]
[1725034567601,3.7161,134.56,134.51,3.7171]
[1725034567800,7.39557294,134.56,134.48,39.43780643]
[1725034567999,0.05712289,134.53,134.51,0.0560261]
[1725034568695,0.05712289,134.53,134.52,3.7171]
[1725034568901,35.81,134.61,134.51,35.8660261]
[1725034569109,3.42050813,134.6,134.51,39.59169084]
[1725034569291,3.7157,134.58,134.51,39.59169084]
[1725034569496,2.0545,134.6,134.51,35.81]
[1725034569699,35.81,134.59,134.5,3.67166721]
[1725034569894,0.05646989,134.56,134.53,0.05396754]
[1725034570303,0.05646989,134.56,134.54,3.7163]
[1725034571003,0.05646989,134.56,134.53,0.05396754]
[1725034572796,35.81,134.57,134.45,35.81]
[1725034572998,35.81,134.57,134.45,39.48716613]
[1725034573193,3.7175,134.51,134.45,35.81]
[1725034573400,35.81,134.55,134.45,39.46375416]
[1725034573593,4.1613,134.54,134.45,35.81]
[1725034573798,3.7178,134.5,134.48,0.04898418]
[1725034574400,3.7179,134.49,134.48,0.04898418]
[1725034574604,35.81,134.51,134.38,3.3962]
[1725034574808,2.0365,134.53,134.38,3.3962]
[1725034574809,35.81,134.49,134.38,35.81]
[1725034575100,35.81,134.47,134.38,35.81]
[1725034575297,2.1805,134.46,134.38,35.81]
[1725034575495,0.0543824,134.43,134.41,0.05642775]
[1725034576506,3.7198,134.42,134.41,0.05642775]
[1725034577405,0.0543824,134.43,134.38,3.7208]
[1725034577905,0.0543824,134.43,134.37,3.7211]
[1725034578106,46.53829749,134.45,134.33,42.87]
[1725034578308,3.76804705,134.4,134.38,0.05300125]
[1725034578512,3.77040042,134.4,134.38,0.05300125]
[1725034579100,0.04990042,134.4,134.38,0.05300125]
[1725034580605,42.91990042,134.4,134.32,3.78441732]
[1725034580906,42.87,134.38,134.26,42.87]
[1725034581118,2.1816,134.37,134.26,42.87]
[1725034581299,42.87,134.36,134.26,3.78739395]
[1725034581611,42.87,134.36,134.24,42.87]
[1725034581612,44.9059,134.36,134.24,42.87]
[1725034581808,0.04721054,134.32,134.24,42.87]
[1725034582008,0.04721054,134.32,134.2,3.5281]
[1725034582009,0.04721054,134.32,134.29,0.04663051]
[1725034582305,44.9059,134.36,134.24,42.87]
[1725034582511,2.0359,134.36,134.26,42.87]
[1725034583112,0.04776032,134.32,134.26,42.87]
[1725034583701,3.77036032,134.32,134.28,3.7235]
[1725034583905,3.77036032,134.32,134.26,42.87]
[1725034584107,0.04776032,134.32,134.26,42.87]
[1725034584312,0.04776032,134.32,134.29,3.7232]
[1725034585103,0.04776032,134.32,134.24,46.66297514]
[1725034585311,0.04776032,134.32,134.24,42.87]
[1725034585709,3.77036032,134.32,134.24,42.87]
[1725034585915,3.77036032,134.32,134.24,46.60241009]
[1725034586210,0.04776032,134.32,134.24,46.60241009]
[1725034586407,0.04776032,134.32,134.26,42.87]
[1725034587412,0.04776032,134.32,134.24,46.60241009]
[1725034587613,0.04776032,134.32,134.24,42.87]
[1725034587821,3.72915425,134.31,134.22,42.87]
[1725034588018,0.04983832,134.28,134.22,42.87]
[1725034588816,0.04983832,134.28,134.24,42.87]
[1725034589016,5.8343,134.34,134.26,42.87]
[1725034589610,5.8343,134.34,134.29,3.7233]
[1725034589807,3.7219,134.35,134.26,42.87]
[1725034590018,0.05601665,134.32,134.29,0.04983832]
[1725034590311,0.05601665,134.32,134.31,3.7229]
[1725034590614,0.05601665,134.32,134.29,0.04983832]
[1725034590819,0.05601665,134.32,134.29,3.77313832]
[1725034591121,0.05601665,134.32,134.29,0.04983832]
[1725034592115,3.7231,134.31,134.29,0.04983832]
[1725034592715,0.05601665,134.32,134.29,0.04983832]
[1725034592716,2.08991665,134.32,134.29,0.04983832]
[1725034593309,3.7231,134.3,134.29,0.04983832]
[1725034593714,2.08991665,134.32,134.29,0.04983832]
[1725034594526,3.7231,134.3,134.29,0.04983832]
[1725034594815,2.08991665,134.32,134.29,0.04983832]
[1725034595317,5.81271665,134.32,134.29,3.77303832]
[1725034595521,2.08991665,134.32,134.29,0.04983832]
[1725034595822,3.7236,134.29,134.21,46.63052196]
[1725034596222,3.7237,134.28,134.21,3.76052196]
[1725034596521,44.9652,134.31,134.2,2.1932]
[1725034596726,0.04913402,134.27,134.21,42.87]
[1725034597018,5.88494681,134.35,134.26,42.87]
[1725034597232,5.7575,134.36,134.26,42.87]
[1725034597419,5.7575,134.36,134.32,3.7224]
[1725034598011,3.77144293,134.35,134.32,3.7224]
[1725034598520,35.75,134.33,134.16,7.4537]
[1725034598724,35.75,134.34,134.2,35.75]
[1725034598725,35.75,134.3,134.2,35.75]
[1725034599136,0.05375775,134.26,134.24,3.7248]
[1725034599538,0.05375775,134.26,134.18,37.9658]
[1725034599846,35.80375775,134.26,134.17,3.66661703]
[1725034600029,0.05339518,134.23,134.19,3.726]
[1725034600334,3.77869518,134.23,134.19,3.726]
[1725034600532,3.77869518,134.23,134.22,3.7254]
[1725034600533,0.05339518,134.23,134.22,3.7254]
[1725034600733,7.43866444,134.26,134.17,2.1546]
[1725034600925,2.079,134.31,134.2,35.75]
[1725034600926,0.05259233,134.24,134.2,35.75]
[1725034601129,0.05404951,134.23,134.22,3.7254]
[1725034601323,0.05420376,134.24,134.22,3.7254]
[1725034601530,0.04937117,134.24,134.17,5.81600559]
[1725034601732,3.7255,134.22,134.17,5.81600559]
[1725034602039,0.05567628,134.21,134.17,3.66140559]
[1725034602236,0.05567628,134.21,134.16,35.75]
[1725034602737,0.05567628,134.21,134.17,2.1546]
[1725034602932,0.05567628,134.21,134.2,3.7259]